Cogmind - Beta 16.1 @@@ ROGUE MODE // 2026.02.21 @ 17:40:37 Player: Ceorik Result: Destroyed by 0O-11B(R) with Subdweller Laser Performance ------------- Evolutions (0) 0 Regions Visited (3) 600 Robots Destroyed (21) 105 Value Destroyed (522) 522 Prototype IDs (13) 260 Alien Tech Used (0) 0 Bonus (0) 0 TOTAL SCORE: 1487 Bonus ------- None Cogmind --------- Core Integrity 0/250 Matter 247/300 Energy 100/100 System Corruption 0% Temperature Cool (6) Movement Walking (130) Location -10/Subcaves Parts ------- > --- POWER (1) -------- (None) > --- PROPULSION (2) --- Cargo Legs > --- UTILITY (2+2) ---- Small Storage Unit Signal Interpreter Makeshift Light Armor Plating (+) > --- WEAPON (2) ------- Makeshift Axe > --- INVENTORY (8) ---- Subdweller Monowheel Subdweller Shrapnel Launcher 1B-0RG's Assimilator Peak State ------------ > --- POWER ------------ Ion Engine > --- PROPULSION ------- Cargo Legs > --- UTILITY ---------- Small Storage Unit Signal Interpreter > --- WEAPON ----------- Rocket Launcher Makeshift Axe > --- INVENTORY -------- Makeshift Light Armor Plating Grenade Launcher Subdweller Shrapnel Launcher 1B-0RG's Assimilator [Rating: 32] Favorites ----------- Power Ion Engine Engine Ion Engine Propulsion Aluminum Leg Leg Aluminum Leg Utility Small Storage Unit Storage Small Storage Unit Processor Signal Interpreter Protection Light Armor Plating Weapon Makeshift Axe Energy Gun EM Pulse Gun Energy Cannon Particle Cannon Launcher Rocket Launcher Slashing Weapon Makeshift Axe Build | -11 -10 -10 -10 ------- Run | Yrd Mat Min Sub Slots Evolved . | . . . . Power . | . . . . Propulsion . | . . . . Utility . | . . . . Weapon . | . . . . Parts Attached 18 | 6 1 9 2 Power 2 | 1 . 1 . Engine 2 | 1 . 1 . Core . | . . . . Reactor . | . . . . Propulsion 5 | 2 1 1 1 Treads . | . . . . Leg 5 | 2 1 1 1 Wheel . | . . . . Hover . | . . . . Flight . | . . . . Utility 4 | 1 . 2 1 Device . | . . . . Storage 1 | 1 . . . Processor 1 | . . 1 . Hackware . | . . . . Protection 2 | . . 1 1 Artifact . | . . . . Weapon 7 | 2 . 5 . Energy Gun 3 | 2 . 1 . Energy Cannon 1 | . . 1 . Ballistic Gun . | . . . . Ballistic Cannon . | . . . . Launcher 2 | . . 2 . Special Weapon . | . . . . Impact Weapon . | . . . . Slashing Weapon 1 | . . 1 . Piercing Weapon . | . . . . Special Melee Weapon . | . . . . Unidentified Prototypes . | . . . . Parts Lost 6 | . . 3 3 Power 2 | . . 1 1 Propulsion 2 | . . 2 . Utility . | . . . . Weapon 2 | . . . 2 Highest Loss Streak 1 | . . 1 1 To Critical Strikes . | . . . . Average Backups 6 | . 4 7 5 Power . | . . 1 . Propulsion . | . . . . Utility . | . . . . Weapon 4 | . 4 5 3 Tool/Special . | . . . . Unused Backups 8 | . . . 8 Power 1 | . . . 1 Propulsion 2 | . . . 2 Utility . | . . . . Weapon 4 | . . . 4 Tool/Special 1 | . . . 1 Average Slot Usage (%) 84 | . 85 97 68 Engine 12 | . 14 13 9 Leg 21 | . 28 26 12 Storage 13 | . 14 14 12 Processor 9 | . . 9 12 Protection 2 | . . 3 1 Energy Gun 10 | . 28 13 . Energy Cannon 1 | . . 4 . Launcher 4 | . . 3 7 Slashing Weapon 7 | . . 6 12 Peak Build Rating 32 | 6 8 13 32 Average Rating 14 | 3 6 11 22 On Entrance 6 | . 6 8 11 Avg Prop Armor Cover (%) . | . . . . Naked Turns . | . . . . Heaviest Build 18 | 13 13 18 17 Greatest Support 55 | 20 23 23 55 Greatest Overweight (x) 1 | . . 1 1 Average Overweight (x) . | . . . . Largest Inventory Capacity 8 | 8 8 8 8 Average Capacity 7 | 6 8 8 8 Most Carried 8 | 5 7 8 8 Average Carried 7 | 1 5 7 7 Final Capacity 8 | 8 8 8 8 Final Carried 7 | . 7 7 7 Class Distribution -------------------- 100% | Mutant Dominant Class ---------------- Mutant | -10/Materials Mutant | -10/Mines Mutant | -10/Subcaves Resources | -11 -10 -10 -10 ----------- Run | Yrd Mat Min Sub Matter Collected 496 | 216 36 217 27 Remotely . | . . . . Salvage Created 450 | . 82 246 122 Parts 37 | . 6 25 6 Haulers Intercepted . | . . . . Recyclers Shooed . | . . . . Parts Field Recycled . | . . . . Retrieved Matter . | . . . . Parts Self-Destructed 9 | . . . 9 Prevented . | . . . . Parts Restored . | . . . . Kills | -11 -10 -10 -10 ------- Run | Yrd Mat Min Sub Combat Hostiles Destroyed 22 | . 2 16 4 Melee 8 | . . 6 2 Guns 4 | . 2 2 . AOE 10 | . . 8 2 Classes Destroyed 4 | . 1 2 1 Swarmer 10 | . . 9 1 Grunt 9 | . 2 6 1 Subdweller 2 | . . . 2 Assembled 1 | . . 1 . Best Kill Streak 3 | . 2 3 2 Combat Bots Only 3 | . 2 3 2 Max Kills in Single Turn 3 | . 1 3 1 Gunslinging . | . . . . Exploded 3 | . . 3 1 Melee 1 | . . 1 1 Uniques/NPCs Destroyed . | . . . . Combat | -11 -10 -10 -10 -------- Run | Yrd Mat Min Sub Hostile Shots Fired 154 | . 12 80 62 Missed 69 | . 6 29 34 Hits 85 | . 6 51 28 Projectile 85 | . 6 51 28 Critical Strikes 4 | . . 1 3 Damage Taken 1001 | . 110 534 357 Core 250 | . . 136 114 Absorbed by Shields . | . . . . Core Remaining (%) 100 | 100 . . . Volleys Fired 21 | . 5 10 6 Largest 2 | . 2 2 1 Hottest 113 | . 80 113 30 Shots Fired 33 | . 9 18 6 Gun 17 | . 9 8 . Cannon 2 | . . 2 . Launcher 14 | . . 8 6 Special . | . . . . Kinetic . | . . . . Thermal 7 | . 5 2 . Explosive 14 | . . 8 6 Electromagnetic 12 | . 4 8 . Robot Hit Streak 11 | . 9 11 1 Robot Miss Streak 4 | . . 3 4 Penetration Max . | . . . . Secondary Targets . | . . . . Shots Hit Robots 32 | . 9 19 4 Core Hits 27 | . 4 17 6 Critical Kills . | . . . . Critical Parts Destroyed . | . . . . Critical Strikes 2 | . 1 . 1 Corrupt 1 | . 1 . . Sever 1 | . . . 1 Melee Attacks 48 | . . 39 9 Impact . | . . . . Slashing 48 | . . 39 9 Piercing . | . . . . Sneak Attacks . | . . . . Combat Hostiles . | . . . . Follow-up Attacks . | . . . . Damage Inflicted 1653 | . 161 1131 361 Guns 149 | . 108 41 . Cannons 41 | . . 41 . Explosions 859 | . 53 553 253 Melee 604 | . . 496 108 Ramming . | . . . . Kinetic . | . . . . Thermal 150 | . 109 41 . Explosive 806 | . . 553 253 Electromagnetic 93 | . 52 41 . Impact . | . . . . Slashing 604 | . . 496 108 Piercing . | . . . . Highest Corruption . | . . . . Average Corruption . | . . . . Corruption Purged . | . . . . Corruption Blocked . | . . . . Overload Shots . | . . . . Overflow Damage 75 | . . 54 21 Projectiles 11 | . . 11 . Explosions 8 | . . 8 . Melee 56 | . . 35 21 Knockbacks . | . . . . Impact . | . . . . Kinetic . | . . . . Secondary . | . . . . Self-Inflicted Damage 62 | . 38 24 . Shots 2 | . 1 1 . Rammed . | . . . . Targets Rammed . | . . . . Kicked . | . . . . Crushed . | . . . . Highest Temperature 111 | . 54 111 . Average Temperature 32 | . 30 32 . Received Heat Transfer 384 | . 42 201 141 Siege Activations . | . . . . Martial Activations . | . . . . Shielding Activations . | . . . . Robots Disrupted . | . . . . Combat Hostiles . | . . . . Robots Corrupted . | . . . . Combat Hostiles . | . . . . Parts Fried . | . . . . Impact Corruptions . | . . . . Robots Melted . | . . . . Combat Hostiles . | . . . . Parts Melted . | . . . . Heat Transferred 249 | . 175 74 . Parts Sabotaged . | . . . . Parts Stolen . | . . . . Parts Stripped . | . . . . Power Chain Reactions 1 | . 1 . . Alert | -11 -10 -10 -10 ------- Run | Yrd Mat Min Sub Maximum Alert Level . | . . . . Low Security (%) 100 | 100 100 100 . Level 1 . | . . . . Level 2 . | . . . . Level 3 . | . . . . Level 4 . | . . . . Level 5 . | . . . . High Security . | . . . . Max Security . | . . . . Peak Influence 130 | . 45 130 . Initial . | . . . . Average 35 | . 10 44 . Influence Increases 670 | . 73 422 175 Destroy 0b10 Robot/C 380 | . 40 300 40 Destroy Leader 50 | . 10 40 . Successful Hack 18 | . 18 . . Disable Machine 15 | . . 15 . Destroy Structure 57 | . 5 52 . Lose Combat Pursuer 150 | . . 15 135 Influence Decreases 605 | . 73 360 172 Entered New Map 33 | . . . 33 Time Decay 537 | . 73 335 129 Lost Part 35 | . . 25 10 Squads Dispatched 1 | . 1 . . Investigation . | . . . . Extermination . | . . . . Reinforcement 1 | . 1 . . Assault . | . . . . Garrison . | . . . . Intercept . | . . . . Searches Triggered . | . . . . Construction Impeded . | . . . . Haulers Reinforced . | . . . . Active Scanning Responses . | . . . . Cargo Convoy Interrupts . | . . . . Stealth | -11 -10 -10 -10 --------- Run | Yrd Mat Min Sub Distress Signals . | . . . . Communications Jammed . | . . . . Distress Signals . | . . . . Times Spotted 41 | . 7 16 18 Peak Tracking Total 9 | . 4 3 9 Tactical Retreats 6 | . . 1 5 Traps | -11 -10 -10 -10 ------- Run | Yrd Mat Min Sub Traps Triggered . | . . . . Indirectly . | . . . . Trap Hack Attempts . | . . . . Triggered . | . . . . Disarmed . | . . . . Reprogrammed . | . . . . Reused . | . . . . Traps Extracted . | . . . . Installed . | . . . . Triggered . | . . . . Machines | -11 -10 -10 -10 ---------- Run | Yrd Mat Min Sub Machines Disabled 2 | . . 1 1 Max in Single Turn 1 | . . 1 1 Machines Repaired . | . . . . Machines Dismantled . | . . . . Machines Sabotaged . | . . . . Overloaded Fab Kills . | . . . . Hacking | -11 -10 -10 -10 --------- Run | Yrd Mat Min Sub Machines Accessed 7 | . 5 1 1 Terminals 5 | . 4 1 . Fabricators . | . . . . Repair Stations . | . . . . Recycling Units 1 | . 1 . . Scanalyzers . | . . . . Garrison Access . | . . . . Total Hacks 15 | . 12 2 1 Successful 11 | . 9 1 1 Failed 4 | . 3 1 . Catastrophic . | . . . . Database Lockouts . | . . . . Manual 11 | . 9 2 . Terminals 12 | . 10 2 . Fabricators . | . . . . Repair Stations . | . . . . Recycling Units 2 | . 2 . . Scanalyzers . | . . . . Garrison Access . | . . . . Terminal Hacks 4 | . 3 . 1 Robot Analysis 1 | . 1 . . Branch Access Points 1 | . 1 . . Registered Components 1 | . 1 . . Proto ID Catalog 1 | . . . 1 Fabricator Hacks . | . . . . Repair Station Hacks . | . . . . Recycling Unit Hacks 2 | . 2 . . Report Inventory 1 | . 1 . . Retrieve Components 1 | . 1 . . Scanalyzer . | . . . . Garrison Access Hacks . | . . . . Unauthorized Hacks 5 | . 4 1 . Terminals 5 | . 4 1 . Botnet 5 | . 4 1 . Fabricators . | . . . . Repair Stations . | . . . . Recycling Units . | . . . . Scanalyzers . | . . . . Garrison Access . | . . . . Data Cores Recovered . | . . . . Used . | . . . . Hacking Detections 4 | . 3 1 . Full Trace Events . | . . . . Feedback Events . | . . . . Feedback Blocked . | . . . . Robot Schematics Acquired . | . . . . Robots Built . | . . . . Authchips . | . . . . Time . | . . . . Total Robot Build Rating . | . . . . Part Schematics Acquired . | . . . . Parts Built . | . . . . Authchips . | . . . . Time . | . . . . Total Part Build Rating . | . . . . Part Studies Acquired . | . . . . Parts Repaired . | . . . . Time . | . . . . Parts Recycled . | . . . . Recycled Matter . | . . . . Retrieved Matter . | . . . . Retrieved Components 2 | . 2 . . Parts Scanalyzed . | . . . . Part Schematics Acquired . | . . . . Parts Damaged . | . . . . Bothacking | -11 -10 -10 -10 ------------ Run | Yrd Mat Min Sub Used RIF Installer . | . . . . Robots Hacked . | . . . . Non-combat . | . . . . Combat . | . . . . Robot Hacks Applied . | . . . . Relay Couplers Released . | . . . . Fabnet Peak Effective % . | . . . . Robots Rewired . | . . . . Allies Hacked . | . . . . Hacks Repelled . | . . . . Allies | -11 -10 -10 -10 -------- Run | Yrd Mat Min Sub Total Allies . | . . . . Largest Group . | . . . . Highest-Rated Group . | . . . . Highest-Rated Ally . | . . . . Total Orders . | . . . . Ally Attacks . | . . . . Total Damage . | . . . . Kills . | . . . . Allies Corrupted . | . . . . Allies Melted . | . . . . Intel | -11 -10 -10 -10 ------- Run | Yrd Mat Min Sub Active Infowar (turns) . | . . . . Robot Analysis Total 1 | . 1 . . Derelict Logs Recovered 1 | . . 1 . Drone Launches . | . . . . Drone Recoveries . | . . . . Exploration | -11 -10 -10 -10 ------------- Run | Yrd Mat Min Sub Turns Passed 2280 | 56 300 1066 858 Spaces Moved 1541 | 50 224 724 543 Core 22 | 22 . . . Treads . | . . . . Legs 1519 | 28 224 724 543 Wheels . | . . . . Hover . | . . . . Flight . | . . . . Fastest Speed 50 | 50 120 120 130 Average Speed 131 | 89 120 125 149 Slowest Speed 190 | 120 120 190 190 Overloaded Moves . | . . . . Propulsion Burnouts . | . . . . Robots Hopped . | . . . . Potential Cave-ins . | . . . . Cave-ins Triggered . | . . . . Exploration Rate (%) 45 | 3 48 99 30 Regions Visited 3 Branch Regions 2 Pre-discovered Areas 1 | . . 1 . Known Exits Taken 2 | . 1 1 . Unknown Exits Taken 1 | 1 . . . Scrap Searched 6 | . . 3 3 Spaces Dug 2 | . . . 2 Terrain Destroyed 113 | . 5 57 51 Melee 2 | . . . 2 Projectile . | . . . . AOE 111 | . 5 57 49 Terrain Rammed . | . . . . Walls Destroyed . | . . . . Machines Disabled . | . . . . Actions | -11 -10 -10 -10 --------- Run | Yrd Mat Min Sub Total 1707 | 61 245 822 579 Wait 38 | . 9 27 2 Move 1538 | 49 223 723 543 Hop . | . . . . Pick Up 27 | 6 7 7 7 Fast Attach . | . . . . Attach 12 | 6 . 3 3 Detach . | . . . . Swap 10 | . 1 9 . Drop 13 | . . 4 9 Fire 21 | . 5 10 6 Melee 48 | . . 39 9 Ram . | . . . . Kick . | . . . . Crush . | . . . . Escape Stasis . | . . . . Rewire . | . . . . Trap . | . . . . Miscellaneous . | . . . . Route ------- -11/Scrapyard -10/Materials (discovered 2 exits: *Mat / *Min) -10/Mines (discovered 3 exits: *Mat x2 / *Sub) -10/Subcaves History --------- Turn | Location | Event 4 | -11/Scrapyard | Discovered new exit (range 16) 57 | -11/Scrapyard | Entered Materials 61 | -10/Materials | Identified exit to Mines 302 | -10/Materials | Build established: Mutant 303 | -10/Materials | Discovered new exit (range 10) 357 | -10/Materials | Entered Mines 406 | -10/Mines | Received a Rocket Launcher from a helpful Derelict 451 | -10/Mines | Discovered new exit (range 15) 667 | -10/Mines | Found DCF Scrap (15 items) 738 | -10/Mines | Identified exit to Materials 899 | -10/Mines | A weapon hastily lodged in a ceiling crevice suddenly fell to the ground 909 | -10/Mines | Excavation squad dispatched 909 | -10/Mines | A large section of the Mines collapsed 1173 | -10/Mines | Discovered exit to Materials (range 10) 1271 | -10/Mines | Learned location of Mines (-8) 1307 | -10/Mines | Core integrity fell below 50% 1413 | -10/Mines | Discovered new exit (range 6) 1421 | -10/Mines | Identified exit to Subcaves 1423 | -10/Mines | Entered Subcaves 1595 | -10/Subcaves | Shifting Twisted Machinery released Sub. Monowheel 1612 | -10/Subcaves | Shifting Twisted Machinery released Sub. Beam Cannon 1738 | -10/Subcaves | Visited 4L-MR0's lab 1769 | -10/Subcaves | Found Cargo Legs 1771 | -10/Subcaves | Attached Cargo Legs, gained temporary slots: Utility x2 1775 | -10/Subcaves | Found Prototype Special Melee Weapon 2077 | -10/Subcaves | Core integrity fell below 20% 2083 | -10/Subcaves | Ambushed by Subdweller buried in earth 2185 | -10/Subcaves | Shifting Twisted Machinery released Sub. Monowheel 2199 | -10/Subcaves | Shifting Twisted Machinery released Sub. Power Source 2281 | -10/Subcaves | Destroyed by 0O-11B(R) with Subdweller Laser Last Messages --------------- 02068_ Ion Engine destroyed. 02069_ LK-ODJ(R) destroyed. 02071_ GE-YP3(R) destroyed. 02073_ The unstable cave ceiling collapses. 02076_ JI-CGM(R): "NOSTUCKSUB!" 02079_ JI-CGM(R) affixes Scrap Shield Fragment to Scrap Shield. 02084_ SZ-RFT(R): "ARGHSUB!" 02084_ The unstable cave ceiling collapses. 02114_ Acquired 17 matter. 02127_ S-10 Pest springs to life. 02129_ S-10 Pest destroyed. 02135_ Grenade Launcher destroyed. 02148_ Destroyed Lgt. Ion Engine. 02148_ S-10 Pest destroyed. Sub. Monowheel falls loose from the Twisted Machinery. 02197_ Acquired Sub. Monowheel. Sub. Power Source falls loose from the Twisted Machinery. Map ----- +----------------------------------------------------+ | ???????????## ## | | ???????????# ## ### ## | | ???????????#### ## ##?# ## ### | | ??????????????## ###??# ## #### | | ???????????????# ###### [% ###?# | | ???????????????## * #???#### | | ????????????????##### ### ## ##??????? | | ???????????????????## #####?# *%#####???????? | | ???????????????????# ####???? ????????????? | | ??????????????????### ##?????? ????????????? | | ?????????????????## ##????# ????????????? | | ?????????????????#" #????#" ????????????? | | ?????????????????# "" #?????" " "????????????? | | ?????????????????# """" #??????""" ?????????????? | | ?????????????????## #???????????????????????? | | ??????????????????## #???????????????### #??? | | ???????????????????#""" ##??????????????? # #?? | | ???????????????????##"" ##??????????????? ?? | | ????????????????????##" #?????????????? ??? | | ?????????????????????# #?????????????? ???? | | ?????????????????????# #?????????????? ???? | | ????????????? ??###" #?????????????? ???? | | ??????????????# ##"""" ######????????? ??? # | | ???????????????# """"" ##???????? #?? " ? | | ??????????????## """"" #??##???? ## " ?? | | ??????????????# """"" @ ### ##?## "???? | | ??????????????# ### R"" ### ?????? | | ??????????????####### #?#####R ### ???????? | | ????????????????????# #????## ##?# #????????? | | ???????????????????## #??### #??# #????????? | | ?????????????????### #### #### #????????? | | ?????????????????# ##????????? | | ??????????????#### #?????????? | | ??????????##### #?????????? | | ??????????# ####### ##?????????? | | ?????????## #?????######??????????? | | ?????????# #????????????????????? | | ?????????#### ### ##????????????????????? | | ????????????####?####### ###?????????????????????? | | ???????????????????????###???????????????????????? | | ?????????????????????????????????????????????????? | | ?????????????????????????????????????????????????? | | ?????????????????????????????????????????????????? | | ?????????????????????????????????????????????????? | | ?????????????????????????????????????????????????? | | ?????????????????????????????????????????????????? | | ?????????????????????????????????????????????????? | | ?????????????????????????????????????????????????? | | ?????????????????????????????????????????????????? | | ?????????????????????????????????????????????????? | +----------------------------------------------------+ Best States ------------- Heat Dissipation 25 Energy Generation 10 Energy Capacity 250 Matter Stores 300 Matter Capacity 300 Sight Range 16 Terrain Scan Density 10 Armor Coverage 150 Evasion (%) 55 Item Schematics ----------------- None Robot Schematics ------------------ None Fabricated ------------ Nothing Repaired ---------- Nothing Studied --------- None Alien Tech Used ----------------- None Achievements -------------- None Challenges ------------ None Game ------ Seed BraceMachineScreen Manual? 0 Play Time 00:18:44 Cumulative 40.3 hours Start 2026.02.21 @ 17:24:12 End 2026.02.21 @ 17:40:37 Sessions 1 Manual Loads 0 Difficulty Rogue Special Mode None Game No. 45 Rogue 45 Adventurer 0 Explorer 0 Win Type - Total 0 Types 0/0/0/0/0/0/0/0/0/0 Lore% 44 Gallery% 33 Achievement% 28 Wizard Run 0 Options --------- Layout 1 ASCII 0 Keyboard 0 Movement Mouse Keybinds 0 Fullscreen 1 Font 24/Swanston Map View 50x35 Zoom Use 0% Tactical HUD 1 Map Filters NONE Filters NONE Steam 1 RUN: b59f279f-8a21-408f-9b42-4557840ce69a